[Event "Late-Titled-Tuesday-Blitz-February-13-2024"]
[Site "Chess.com"]
[Date "2024.02.13"]
[Round "11"]
[White "lucliasco"]
[Black "vi_pranav"]
[Result "1-0"]
[WhiteElo "2864"]
[BlackElo "3012"]
[TimeControl "180+1"]
[EndTime "16:04:40 PST"]
[Termination "lucliasco won on time"]

1. d4 {[%clk 0:03:00.9]} 1... Nf6 {[%clk 0:03:00.1]} 2. Nf3 {[%clk 0:02:59]}
2... e6 {[%clk 0:02:59.8]} 3. e3 {[%clk 0:02:58.7]} 3... b6 {[%clk 0:02:59.5]}
4. Bd3 {[%clk 0:02:59.6]} 4... Bb7 {[%clk 0:02:57.2]} 5. O-O {[%clk 0:03:00.5]}
5... c5 {[%clk 0:02:56.8]} 6. b3 {[%clk 0:03:00.5]} 6... Be7 {[%clk 0:02:56.9]}
7. Bb2 {[%clk 0:03:00.8]} 7... O-O {[%clk 0:02:56.1]} 8. Nbd2 {[%clk 0:03:00.4]}
8... d6 {[%clk 0:02:52.3]} 9. Qe2 {[%clk 0:02:57.6]} 9... Nc6 {[%clk 0:02:52.2]}
10. a3 {[%clk 0:02:57.1]} 10... Rc8 {[%clk 0:02:49.2]} 11. Rad1 {[%clk
0:02:57.5]} 11... Qc7 {[%clk 0:02:48.9]} 12. dxc5 {[%clk 0:02:56.3]} 12... bxc5
{[%clk 0:02:48.3]} 13. e4 {[%clk 0:02:57.1]} 13... Nd7 {[%clk 0:02:47.5]} 14.
Nc4 {[%clk 0:02:51.3]} 14... Rfe8 {[%clk 0:02:43.8]} 15. Rfe1 {[%clk 0:02:48.4]}
15... Bf8 {[%clk 0:02:42]} 16. h4 {[%clk 0:02:47]} 16... d5 {[%clk 0:02:16.2]}
17. Ne3 {[%clk 0:02:42.3]} 17... d4 {[%clk 0:02:05.2]} 18. Ng4 {[%clk
0:02:41.3]} 18... Bd6 {[%clk 0:01:48.4]} 19. e5 {[%clk 0:02:35.2]} 19... Bf8
{[%clk 0:01:45.2]} 20. Bc1 {[%clk 0:02:02.9]} 20... Ne7 {[%clk 0:01:40.2]} 21.
Bf4 {[%clk 0:01:48.3]} 21... Nd5 {[%clk 0:01:36.6]} 22. Bg3 {[%clk 0:01:42.7]}
22... Nc3 {[%clk 0:01:35]} 23. Qd2 {[%clk 0:01:39.5]} 23... Bxf3 {[%clk
0:01:34.5]} 24. gxf3 {[%clk 0:01:35.2]} 24... Nxd1 {[%clk 0:01:32.9]} 25. Rxd1
{[%clk 0:01:36.1]} 25... h5 {[%clk 0:01:27.1]} 26. Nf6+ {[%clk 0:01:33]} 26...
Nxf6 {[%clk 0:01:11.8]} 27. exf6 {[%clk 0:01:33.9]} 27... Qd8 {[%clk 0:01:12.4]}
28. fxg7 {[%clk 0:01:29.9]} 28... Bxg7 {[%clk 0:01:12.2]} 29. Qe1 {[%clk
0:01:30.3]} 29... Bf6 {[%clk 0:01:04.8]} 30. Qe4 {[%clk 0:01:27]} 30... Kf8
{[%clk 0:01:01]} 31. Re1 {[%clk 0:01:23]} 31... Qd5 {[%clk 0:00:58.2]} 32. Qh7
{[%clk 0:01:19.4]} 32... Ke7 {[%clk 0:00:53.4]} 33. Bc4 {[%clk 0:01:19.4]} 33...
Rh8 {[%clk 0:00:14.6]} 34. Qxh8 {[%clk 0:01:19]} 34... Rxh8 {[%clk 0:00:15.5]}
35. Bxd5 {[%clk 0:01:18.8]} 35... Rg8 {[%clk 0:00:16.2]} 36. Kh2 {[%clk
0:01:18.3]} 36... Kd7 {[%clk 0:00:04.6]} 37. Bc4 {[%clk 0:01:17.8]} 37... Re8
{[%clk 0:00:04.7]} 38. a4 {[%clk 0:01:17.5]} 38... Rg8 {[%clk 0:00:02.5]} 39.
Re4 {[%clk 0:01:15.8]} 39... Bd8 {[%clk 0:00:02.2]} 40. Re5 {[%clk 0:01:13.8]}
40... Be7 {[%clk 0:00:01]} 41. Rxh5 {[%clk 0:01:12.9]} 41... Rg7 {[%clk
0:00:01.2]} 42. Re5 {[%clk 0:01:12]} 42... f6 {[%clk 0:00:01.1]} 43. Rxe6 {[%clk
0:01:11.2]} 1-0

[Event "Late-Titled-Tuesday-Blitz-February-13-2024"]
[Site "Chess.com"]
[Date "2024.02.13"]
[Round "11"]
[White "emeli_chess"]
[Black "Jaka_Brilej"]
[Result "0-1"]
[WhiteElo "2406"]
[BlackElo "2539"]
[TimeControl "180+1"]
[EndTime "16:04:40 PST"]
[Termination "Jaka_Brilej won by resignation"]

1. d4 {[%clk 0:03:00.9]} 1... Nf6 {[%clk 0:02:58.2]} 2. c4 {[%clk 0:03:01.2]}
2... g6 {[%clk 0:02:57.6]} 3. Nc3 {[%clk 0:03:01.4]} 3... Bg7 {[%clk 0:02:40.9]}
4. e4 {[%clk 0:03:01.1]} 4... d6 {[%clk 0:02:41.6]} 5. f3 {[%clk 0:03:01.3]}
5... O-O {[%clk 0:02:21]} 6. Be3 {[%clk 0:03:00.9]} 6... c5 {[%clk 0:02:21.9]}
7. Nge2 {[%clk 0:02:59.9]} 7... Nc6 {[%clk 0:02:18.2]} 8. d5 {[%clk 0:02:59.9]}
8... Ne5 {[%clk 0:02:17.5]} 9. Ng3 {[%clk 0:02:59.9]} 9... h5 {[%clk 0:02:16.6]}
10. Be2 {[%clk 0:03:00]} 10... h4 {[%clk 0:02:16.8]} 11. Nf1 {[%clk 0:02:58.4]}
11... h3 {[%clk 0:02:14.5]} 12. Rg1 {[%clk 0:02:39.4]} 12... hxg2 {[%clk
0:01:50.1]} 13. Rxg2 {[%clk 0:02:39.2]} 13... Bh3 {[%clk 0:01:51]} 14. Rg3
{[%clk 0:02:32.1]} 14... Bxf1 {[%clk 0:01:49.5]} 15. Kxf1 {[%clk 0:02:29.5]}
15... Nh5 {[%clk 0:01:49.8]} 16. Rg2 {[%clk 0:02:22.9]} 16... f5 {[%clk
0:01:50.3]} 17. Kg1 {[%clk 0:02:08.6]} 17... f4 {[%clk 0:01:49.9]} 18. Bf2
{[%clk 0:02:06.9]} 18... Qc8 {[%clk 0:01:35.9]} 19. Kh1 {[%clk 0:01:58.5]} 19...
Qh3 {[%clk 0:01:33.8]} 20. Qg1 {[%clk 0:01:56.5]} 20... Kf7 {[%clk 0:01:23.8]}
21. Rg5 {[%clk 0:01:36.5]} 21... Rh8 {[%clk 0:01:18.5]} 22. Qg2 {[%clk
0:01:32.8]} 22... Qd7 {[%clk 0:01:09.9]} 23. Rg1 {[%clk 0:01:27.2]} 23... Rh6
{[%clk 0:01:01.6]} 24. Bh4 {[%clk 0:00:52.6]} 24... Bf6 {[%clk 0:00:52.8]} 25.
Qf2 {[%clk 0:00:41.8]} 25... Rah8 {[%clk 0:00:48.2]} 26. Kg2 {[%clk 0:00:39.7]}
26... Ng7 {[%clk 0:00:37.5]} 27. Rxe5 {[%clk 0:00:17.2]} 27... Rxh4 {[%clk
0:00:34.7]} 28. Kf1 {[%clk 0:00:12]} 28... Bxe5 {[%clk 0:00:32.2]} 29. Ke1
{[%clk 0:00:09.4]} 29... Rxh2 {[%clk 0:00:31.5]} 30. Qf1 {[%clk 0:00:09.3]}
30... Nh5 {[%clk 0:00:27.7]} 0-1

[Event "Late-Titled-Tuesday-Blitz-February-13-2024"]
[Site "Chess.com"]
[Date "2024.02.13"]
[Round "11"]
[White "krzyzan94"]
[Black "SergioMoralesG"]
[Result "1-0"]
[WhiteElo "2786"]
[BlackElo "2548"]
[TimeControl "180+1"]
[EndTime "16:04:43 PST"]
[Termination "krzyzan94 won by resignation"]

1. d4 {[%clk 0:02:46.1]} 1... d5 {[%clk 0:02:59.5]} 2. Bf4 {[%clk 0:02:45.1]}
2... Nf6 {[%clk 0:02:59.1]} 3. e3 {[%clk 0:02:45.3]} 3... c5 {[%clk 0:02:59.5]}
4. Nf3 {[%clk 0:02:44.8]} 4... e6 {[%clk 0:03:00.1]} 5. Nbd2 {[%clk 0:02:43.8]}
5... Bd6 {[%clk 0:03:00.6]} 6. c3 {[%clk 0:02:43.4]} 6... O-O {[%clk 0:02:59.5]}
7. h4 {[%clk 0:02:43.4]} 7... Bxf4 {[%clk 0:02:50]} 8. exf4 {[%clk 0:02:42.2]}
8... Qc7 {[%clk 0:02:50.6]} 9. Ne5 {[%clk 0:02:36.9]} 9... cxd4 {[%clk
0:02:50.2]} 10. cxd4 {[%clk 0:02:36.8]} 10... Nc6 {[%clk 0:02:47.3]} 11. Rc1
{[%clk 0:02:35.7]} 11... Qb6 {[%clk 0:02:44.9]} 12. Nb3 {[%clk 0:02:31.1]} 12...
Qb4+ {[%clk 0:02:32.9]} 13. Qd2 {[%clk 0:02:22.9]} 13... Qxd2+ {[%clk
0:02:18.4]} 14. Kxd2 {[%clk 0:02:22.9]} 14... Ne4+ {[%clk 0:01:59.6]} 15. Ke3
{[%clk 0:02:22.7]} 15... Nd6 {[%clk 0:01:54.9]} 16. Nxc6 {[%clk 0:02:17.3]}
16... bxc6 {[%clk 0:01:43.4]} 17. Rxc6 {[%clk 0:02:18.2]} 17... Nf5+ {[%clk
0:01:41.3]} 18. Kd2 {[%clk 0:02:17.1]} 18... a5 {[%clk 0:01:30.7]} 19. g4 {[%clk
0:01:33.1]} 19... a4 {[%clk 0:01:21.2]} 20. gxf5 {[%clk 0:01:32.9]} 20... axb3
{[%clk 0:01:20.8]} 21. axb3 {[%clk 0:01:33.2]} 21... Rb8 {[%clk 0:01:14.6]} 22.
Kc3 {[%clk 0:01:30.5]} 22... exf5 {[%clk 0:01:13.7]} 23. b4 {[%clk 0:01:28]}
23... Be6 {[%clk 0:00:57.1]} 24. Bd3 {[%clk 0:01:22.9]} 24... Rfc8 {[%clk
0:00:52.6]} 25. Rc5 {[%clk 0:01:23.2]} 25... Kf8 {[%clk 0:00:51.2]} 26. Ra1
{[%clk 0:01:21.7]} 26... g6 {[%clk 0:00:32.6]} 27. b5 {[%clk 0:01:18.1]} 27...
Ke7 {[%clk 0:00:24.1]} 28. Ra7+ {[%clk 0:01:15]} 28... Kf6 {[%clk 0:00:24.3]}
29. Kb4 {[%clk 0:01:07.3]} 29... h6 {[%clk 0:00:21.2]} 30. Rxc8 {[%clk 0:01:05]}
30... Bxc8 {[%clk 0:00:17.8]} 31. Kc5 {[%clk 0:01:03.8]} 31... Be6 {[%clk
0:00:18]} 32. b6 {[%clk 0:01:03.4]} 32... Rc8+ {[%clk 0:00:01.7]} 33. Kb5 {[%clk
0:00:49]} 33... g5 {[%clk 0:00:01]} 34. hxg5+ {[%clk 0:00:46.1]} 34... hxg5
{[%clk 0:00:01.9]} 35. fxg5+ {[%clk 0:00:46.9]} 35... Kxg5 {[%clk 0:00:02.1]}
36. b7 {[%clk 0:00:47.8]} 36... Rb8 {[%clk 0:00:02.6]} 37. Kc6 {[%clk
0:00:45.1]} 37... Kf6 {[%clk 0:00:03.5]} 38. Ra8 {[%clk 0:00:42.4]} 1-0

[Event "Late-Titled-Tuesday-Blitz-February-13-2024"]
[Site "Chess.com"]
[Date "2024.02.13"]
[Round "11"]
[White "jcibarra"]
[Black "Miguelito"]
[Result "1-0"]
[WhiteElo "2910"]
[BlackElo "2766"]
[TimeControl "180+1"]
[EndTime "16:04:44 PST"]
[Termination "jcibarra won by resignation"]

1. g3 {[%clk 0:02:59.1]} 1... d5 {[%clk 0:02:59.7]} 2. Bg2 {[%clk 0:02:53.3]}
2... c6 {[%clk 0:02:58.5]} 3. d3 {[%clk 0:02:53.4]} 3... g6 {[%clk 0:02:57]} 4.
e4 {[%clk 0:02:52.9]} 4... dxe4 {[%clk 0:02:55.5]} 5. dxe4 {[%clk 0:02:52.7]}
5... Qxd1+ {[%clk 0:02:55.7]} 6. Kxd1 {[%clk 0:02:53.6]} 6... e5 {[%clk
0:02:52.9]} 7. c3 {[%clk 0:02:53.8]} 7... a5 {[%clk 0:02:49.6]} 8. a4 {[%clk
0:02:53.5]} 8... Na6 {[%clk 0:02:49.8]} 9. Kc2 {[%clk 0:02:42.6]} 9... h5 {[%clk
0:02:49.3]} 10. Nd2 {[%clk 0:02:39.1]} 10... Nc5 {[%clk 0:02:46.2]} 11. Nc4
{[%clk 0:02:36.1]} 11... Be6 {[%clk 0:02:34.5]} 12. Nxe5 {[%clk 0:02:04.6]}
12... Bg7 {[%clk 0:02:34.4]} 13. Ngf3 {[%clk 0:02:02.2]} 13... Nxe4 {[%clk
0:02:10.6]} 14. Re1 {[%clk 0:01:59.9]} 14... Nxf2 {[%clk 0:02:10.1]} 15. Nd4
{[%clk 0:01:55.1]} 15... Ne7 {[%clk 0:01:59.4]} 16. Bg5 {[%clk 0:01:48.9]} 16...
Bxe5 {[%clk 0:01:27.5]} 17. Nxe6 {[%clk 0:01:35.7]} 17... Bd6 {[%clk 0:01:21.6]}
18. Nc7+ {[%clk 0:01:21.6]} 18... Kd7 {[%clk 0:01:16.8]} 19. Nxa8 {[%clk
0:01:21.3]} 19... Rxa8 {[%clk 0:01:17.7]} 20. Re2 {[%clk 0:01:18.4]} 20... Ng4
{[%clk 0:01:14.3]} 21. Rd1 {[%clk 0:00:54.4]} 21... Nd5 {[%clk 0:00:50.4]} 22.
Bxd5 {[%clk 0:00:39.5]} 22... cxd5 {[%clk 0:00:51.3]} 23. Rxd5 {[%clk
0:00:35.4]} 23... Kc6 {[%clk 0:00:51.7]} 24. Rd4 {[%clk 0:00:34.7]} 24... Ne5
{[%clk 0:00:45.1]} 25. Bf6 {[%clk 0:00:20]} 25... Nf3 {[%clk 0:00:40.5]} 26. Rd3
{[%clk 0:00:16.8]} 26... Ng1 {[%clk 0:00:37.6]} 27. Rg2 {[%clk 0:00:11.8]} 27...
Nh3 {[%clk 0:00:36.6]} 28. Rgd2 {[%clk 0:00:11.5]} 28... Bc7 {[%clk 0:00:36.4]}
29. Rd7 {[%clk 0:00:09.6]} 29... Rf8 {[%clk 0:00:33.5]} 30. Bg7 {[%clk
0:00:09.3]} 30... Re8 {[%clk 0:00:31.2]} 31. Rxf7 {[%clk 0:00:09.5]} 31... Ng1
{[%clk 0:00:31]} 32. Rf6+ {[%clk 0:00:09.3]} 32... Kc5 {[%clk 0:00:30.4]} 33.
Bf8+ {[%clk 0:00:07.1]} 1-0

[Event "Late-Titled-Tuesday-Blitz-February-13-2024"]
[Site "Chess.com"]
[Date "2024.02.13"]
[Round "11"]
[White "picturesquecheck"]
[Black "WilsonPalencia21"]
[Result "0-1"]
[WhiteElo "2409"]
[BlackElo "2542"]
[TimeControl "180+1"]
[EndTime "16:04:46 PST"]
[Termination "WilsonPalencia21 won by resignation"]

1. e4 {[%clk 0:03:00.9]} 1... c5 {[%clk 0:02:59.8]} 2. Nf3 {[%clk 0:02:51.9]}
2... d6 {[%clk 0:02:58.3]} 3. d4 {[%clk 0:02:52.2]} 3... cxd4 {[%clk 0:02:58.4]}
4. Nxd4 {[%clk 0:02:53.1]} 4... Nf6 {[%clk 0:02:58]} 5. Nc3 {[%clk 0:02:53.7]}
5... g6 {[%clk 0:02:57.2]} 6. Be3 {[%clk 0:02:53.3]} 6... Bg7 {[%clk 0:02:56.8]}
7. f3 {[%clk 0:02:53.8]} 7... O-O {[%clk 0:02:56.8]} 8. Qd2 {[%clk 0:02:54.3]}
8... Nc6 {[%clk 0:02:57.3]} 9. Bc4 {[%clk 0:02:52.9]} 9... Ne5 {[%clk
0:02:57.4]} 10. Bb3 {[%clk 0:02:52.6]} 10... Bd7 {[%clk 0:02:58]} 11. O-O-O
{[%clk 0:02:52.1]} 11... Rc8 {[%clk 0:02:57.5]} 12. Kb1 {[%clk 0:02:52.7]} 12...
Re8 {[%clk 0:02:57.2]} 13. h4 {[%clk 0:02:52.2]} 13... h5 {[%clk 0:02:57.1]} 14.
Bg5 {[%clk 0:02:52.5]} 14... Rc5 {[%clk 0:02:56.6]} 15. g4 {[%clk 0:02:48.4]}
15... hxg4 {[%clk 0:02:56.4]} 16. h5 {[%clk 0:02:48.8]} 16... Nxh5 {[%clk
0:02:56.4]} 17. Rxh5 {[%clk 0:02:45.3]} 17... gxh5 {[%clk 0:02:57.3]} 18. Qh2
{[%clk 0:02:44.8]} 18... Ng6 {[%clk 0:02:57.2]} 19. Nd5 {[%clk 0:02:42.2]} 19...
Qa5 {[%clk 0:02:49.7]} 20. Qxh5 {[%clk 0:02:37]} 20... e6 {[%clk 0:02:40.6]} 21.
Nf5 {[%clk 0:02:08.1]} 21... Rxd5 {[%clk 0:01:51.5]} 22. Bxd5 {[%clk 0:01:55]}
22... exf5 {[%clk 0:01:40.2]} 23. Rh1 {[%clk 0:01:42.4]} 23... Be6 {[%clk
0:01:30.5]} 24. fxg4 {[%clk 0:00:42.3]} 24... fxe4 {[%clk 0:01:23.6]} 25. Qh7+
{[%clk 0:00:29.5]} 25... Kf8 {[%clk 0:01:22]} 26. Bh6 {[%clk 0:00:27.9]} 26...
Qxd5 {[%clk 0:00:55.4]} 27. Qxg7+ {[%clk 0:00:20.5]} 27... Ke7 {[%clk
0:00:55.5]} 28. b3 {[%clk 0:00:20.3]} 28... Kd7 {[%clk 0:00:51.6]} 29. Qc3
{[%clk 0:00:18.6]} 29... Rc8 {[%clk 0:00:46.9]} 30. Qb4 {[%clk 0:00:15.3]} 30...
e3 {[%clk 0:00:45.3]} 31. Re1 {[%clk 0:00:14.1]} 31... a5 {[%clk 0:00:43.5]} 32.
Qa4+ {[%clk 0:00:11.6]} 32... Qc6 {[%clk 0:00:43.4]} 33. Qxa5 {[%clk 0:00:05.4]}
33... Qxc2+ {[%clk 0:00:42.2]} 34. Ka1 {[%clk 0:00:06]} 34... Qc3+ {[%clk
0:00:37.8]} 35. Qxc3 {[%clk 0:00:06.6]} 35... Rxc3 {[%clk 0:00:38]} 36. Bxe3
{[%clk 0:00:07.5]} 36... Bxg4 {[%clk 0:00:37.5]} 37. Rf1 {[%clk 0:00:05.7]}
37... Rxe3 {[%clk 0:00:36.8]} 0-1

[Event "Late-Titled-Tuesday-Blitz-February-13-2024"]
[Site "Chess.com"]
[Date "2024.02.13"]
[Round "11"]
[White "szefru"]
[Black "KorolDimitriy75"]
[Result "0-1"]
[WhiteElo "2254"]
[BlackElo "2427"]
[TimeControl "180+1"]
[EndTime "16:04:47 PST"]
[Termination "KorolDimitriy75 won by checkmate"]

1. e4 {[%clk 0:03:00.9]} 1... c5 {[%clk 0:02:59.4]} 2. Nf3 {[%clk 0:03:00.8]}
2... d6 {[%clk 0:02:59.8]} 3. d4 {[%clk 0:03:00.8]} 3... cxd4 {[%clk 0:03:00.7]}
4. Qxd4 {[%clk 0:03:01.6]} 4... a6 {[%clk 0:03:00.3]} 5. c4 {[%clk 0:02:53.6]}
5... Nc6 {[%clk 0:03:00.7]} 6. Qd3 {[%clk 0:02:53.8]} 6... g6 {[%clk 0:03:00.9]}
7. Nc3 {[%clk 0:02:54.4]} 7... Bg7 {[%clk 0:03:01.1]} 8. Be2 {[%clk 0:02:55]}
8... Nf6 {[%clk 0:03:01.3]} 9. O-O {[%clk 0:02:55.4]} 9... O-O {[%clk
0:03:01.6]} 10. h3 {[%clk 0:02:55.6]} 10... Nd7 {[%clk 0:03:02.2]} 11. Be3
{[%clk 0:02:55.2]} 11... Nc5 {[%clk 0:03:01.8]} 12. Qc2 {[%clk 0:02:52.8]} 12...
a5 {[%clk 0:02:59.2]} 13. a3 {[%clk 0:02:50.9]} 13... Be6 {[%clk 0:02:53.6]} 14.
Rfd1 {[%clk 0:02:49.8]} 14... Qb6 {[%clk 0:02:14.4]} 15. Ng5 {[%clk 0:02:19.2]}
15... Qb3 {[%clk 0:01:51.8]} 16. Qd2 {[%clk 0:02:18.4]} 16... Bxc4 {[%clk
0:01:41]} 17. Bxc5 {[%clk 0:02:11.2]} 17... Bxe2 {[%clk 0:01:25.8]} 18. Qxe2
{[%clk 0:02:04.6]} 18... dxc5 {[%clk 0:01:25.8]} 19. Nd5 {[%clk 0:02:03.4]}
19... Qxb2 {[%clk 0:01:10.3]} 20. Qg4 {[%clk 0:02:03]} 20... e6 {[%clk
0:00:54.9]} 21. Rab1 {[%clk 0:01:53]} 21... Qxa3 {[%clk 0:00:36.5]} 22. Nb6
{[%clk 0:01:48]} 22... Rad8 {[%clk 0:00:30.3]} 23. Nd7 {[%clk 0:01:47.9]} 23...
Rxd7 {[%clk 0:00:22.7]} 24. Rxd7 {[%clk 0:01:46.9]} 24... Ne5 {[%clk 0:00:23]}
25. Qd1 {[%clk 0:01:42.9]} 25... Nxd7 {[%clk 0:00:20.7]} 26. Qxd7 {[%clk
0:01:43.8]} 26... b5 {[%clk 0:00:09.3]} 27. Rxb5 {[%clk 0:01:43.1]} 27... Qc1+
{[%clk 0:00:08.8]} 28. Kh2 {[%clk 0:01:41.6]} 28... Qxg5 {[%clk 0:00:09.7]} 29.
Rxa5 {[%clk 0:01:40.3]} 29... Qf4+ {[%clk 0:00:08.8]} 30. Kg1 {[%clk 0:01:39.2]}
30... Bd4 {[%clk 0:00:08.2]} 31. Ra2 {[%clk 0:01:36.8]} 31... Qc1+ {[%clk
0:00:06.2]} 32. Kh2 {[%clk 0:01:35.4]} 32... Qf4+ {[%clk 0:00:06.1]} 33. g3
{[%clk 0:01:35.2]} 33... Qxe4 {[%clk 0:00:06.3]} 34. h4 {[%clk 0:01:34.3]} 34...
Qd5 {[%clk 0:00:06.5]} 35. Qa4 {[%clk 0:01:27.8]} 35... e5 {[%clk 0:00:05.5]}
36. h5 {[%clk 0:01:27.3]} 36... Kg7 {[%clk 0:00:04.5]} 37. Qd1 {[%clk
0:01:22.5]} 37... Qxa2 {[%clk 0:00:03.4]} 38. h6+ {[%clk 0:01:21.5]} 38... Kg8
{[%clk 0:00:03.6]} 39. Qf3 {[%clk 0:01:20.7]} 39... Qe6 {[%clk 0:00:04.1]} 40.
Qe4 {[%clk 0:01:19.2]} 40... Qf5 {[%clk 0:00:02.1]} 41. Qb7 {[%clk 0:01:15.3]}
41... Qh5+ {[%clk 0:00:02.3]} 42. Kg2 {[%clk 0:01:15.5]} 42... Qxh6 {[%clk
0:00:03.2]} 43. Qd5 {[%clk 0:01:10.7]} 43... Qg7 {[%clk 0:00:04.1]} 44. f4
{[%clk 0:01:10.5]} 44... h5 {[%clk 0:00:05]} 45. f5 {[%clk 0:01:09.8]} 45...
gxf5 {[%clk 0:00:05.2]} 46. Qf3 {[%clk 0:01:09.2]} 46... Qg4 {[%clk 0:00:05.4]}
47. Qd3 {[%clk 0:01:08]} 47... f4 {[%clk 0:00:05.4]} 48. Kh1 {[%clk 0:01:05]}
48... Qh3# {[%clk 0:00:05.3]} 0-1

[Event "Late-Titled-Tuesday-Blitz-February-13-2024"]
[Site "Chess.com"]
[Date "2024.02.13"]
[Round "11"]
[White "GothamChess"]
[Black "ValeriyGrinev"]
[Result "0-1"]
[WhiteElo "2702"]
[BlackElo "2548"]
[TimeControl "180+1"]
[EndTime "16:04:49 PST"]
[Termination "ValeriyGrinev won on time"]

1. e4 {[%clk 0:03:00.9]} 1... c5 {[%clk 0:03:00.5]} 2. a3 {[%clk 0:02:59.5]}
2... g6 {[%clk 0:02:59.8]} 3. Nc3 {[%clk 0:02:59.6]} 3... Bg7 {[%clk 0:02:59.9]}
4. Bc4 {[%clk 0:03:00.4]} 4... e6 {[%clk 0:02:59.6]} 5. d3 {[%clk 0:03:01]} 5...
Ne7 {[%clk 0:02:59.4]} 6. Ba2 {[%clk 0:03:01.7]} 6... Nbc6 {[%clk 0:02:59.2]} 7.
Nge2 {[%clk 0:03:00.5]} 7... O-O {[%clk 0:02:58.9]} 8. h4 {[%clk 0:03:01.1]}
8... d5 {[%clk 0:02:54.7]} 9. h5 {[%clk 0:03:01.3]} 9... Rb8 {[%clk 0:02:46.3]}
10. hxg6 {[%clk 0:03:00.6]} 10... hxg6 {[%clk 0:02:45.4]} 11. Bf4 {[%clk
0:03:01.1]} 11... e5 {[%clk 0:02:43.1]} 12. Bg5 {[%clk 0:03:00.5]} 12... Qd6
{[%clk 0:02:06]} 13. exd5 {[%clk 0:02:55]} 13... Nd4 {[%clk 0:01:59.3]} 14. Ne4
{[%clk 0:02:54.4]} 14... Qb6 {[%clk 0:01:32]} 15. d6 {[%clk 0:02:38.5]} 15...
Nef5 {[%clk 0:01:16.4]} 16. Nf6+ {[%clk 0:01:47.9]} 16... Bxf6 {[%clk
0:01:16.1]} 17. Bxf6 {[%clk 0:01:48.8]} 17... Ng7 {[%clk 0:01:16.6]} 18. Nxd4
{[%clk 0:01:48.8]} 18... Qxd6 {[%clk 0:01:12.5]} 19. Bxg7 {[%clk 0:00:52.9]}
19... Kxg7 {[%clk 0:01:13.4]} 20. Nf3 {[%clk 0:00:50.1]} 20... Bg4 {[%clk
0:01:14]} 21. Qd2 {[%clk 0:00:48.6]} 21... Rh8 {[%clk 0:01:11.3]} 22. O-O-O
{[%clk 0:00:46.2]} 22... b5 {[%clk 0:01:03.3]} 23. Rxh8 {[%clk 0:00:38.3]} 23...
Rxh8 {[%clk 0:01:02.4]} 24. Re1 {[%clk 0:00:38.6]} 24... Bxf3 {[%clk 0:00:58.2]}
25. gxf3 {[%clk 0:00:39]} 25... b4 {[%clk 0:00:44.6]} 26. axb4 {[%clk
0:00:38.7]} 26... cxb4 {[%clk 0:00:45.5]} 27. Qe3 {[%clk 0:00:35.2]} 27... Rh5
{[%clk 0:00:45.8]} 28. Qxa7 {[%clk 0:00:31.2]} 28... Rf5 {[%clk 0:00:45.7]} 29.
Re3 {[%clk 0:00:28.6]} 29... Qd8 {[%clk 0:00:32.3]} 30. Qc5 {[%clk 0:00:20.5]}
30... Qh4 {[%clk 0:00:27.5]} 31. Rxe5 {[%clk 0:00:10.4]} 31... Qg5+ {[%clk
0:00:27.3]} 32. f4 {[%clk 0:00:08]} 32... Qxf4+ {[%clk 0:00:26.9]} 33. Re3
{[%clk 0:00:07.7]} 33... Rxc5 {[%clk 0:00:26.6]} 0-1

[Event "Late-Titled-Tuesday-Blitz-February-13-2024"]
[Site "Chess.com"]
[Date "2024.02.13"]
[Round "11"]
[White "Sl4werThanYou"]
[Black "platy3"]
[Result "0-1"]
[WhiteElo "2700"]
[BlackElo "2960"]
[TimeControl "180+1"]
[EndTime "16:04:51 PST"]
[Termination "platy3 won on time"]

1. e4 {[%clk 0:02:53.6]} 1... c5 {[%clk 0:02:58.6]} 2. Nf3 {[%clk 0:02:53]} 2...
e6 {[%clk 0:02:59.4]} 3. d4 {[%clk 0:02:47.7]} 3... cxd4 {[%clk 0:03:00.3]} 4.
Nxd4 {[%clk 0:02:48.6]} 4... Nc6 {[%clk 0:03:00.7]} 5. Nc3 {[%clk 0:02:48.9]}
5... Qc7 {[%clk 0:03:00.8]} 6. Be2 {[%clk 0:02:48.3]} 6... a6 {[%clk 0:03:01]}
7. O-O {[%clk 0:02:48.4]} 7... Nf6 {[%clk 0:03:01.5]} 8. Be3 {[%clk 0:02:48.9]}
8... Be7 {[%clk 0:03:01.9]} 9. Nb3 {[%clk 0:02:48.3]} 9... b5 {[%clk 0:03:01.6]}
10. a3 {[%clk 0:02:47.1]} 10... Bb7 {[%clk 0:03:01.5]} 11. f4 {[%clk 0:02:45.6]}
11... d6 {[%clk 0:03:01.8]} 12. Bf3 {[%clk 0:02:44.9]} 12... O-O {[%clk
0:03:01.3]} 13. g4 {[%clk 0:02:36.3]} 13... b4 {[%clk 0:02:55.5]} 14. axb4
{[%clk 0:02:36.2]} 14... Nxb4 {[%clk 0:02:56.4]} 15. g5 {[%clk 0:02:36]} 15...
Nd7 {[%clk 0:02:56.9]} 16. Na5 {[%clk 0:02:32.6]} 16... Rac8 {[%clk 0:02:52.2]}
17. Nxb7 {[%clk 0:02:30.9]} 17... Qxb7 {[%clk 0:02:53.1]} 18. h4 {[%clk
0:02:27.2]} 18... Rfe8 {[%clk 0:02:52.9]} 19. h5 {[%clk 0:02:26.7]} 19... Bf8
{[%clk 0:02:49.4]} 20. Qe2 {[%clk 0:02:19.2]} 20... g6 {[%clk 0:02:45.9]} 21.
hxg6 {[%clk 0:02:12.5]} 21... hxg6 {[%clk 0:02:44]} 22. Bd4 {[%clk 0:01:13.1]}
22... e5 {[%clk 0:02:41.6]} 23. fxe5 {[%clk 0:01:12.8]} 23... Nxe5 {[%clk
0:02:41.5]} 24. Bg4 {[%clk 0:01:05.7]} 24... Rcd8 {[%clk 0:02:35.1]} 25. Rf2
{[%clk 0:01:01.3]} 25... Bg7 {[%clk 0:02:27.3]} 26. Rd1 {[%clk 0:00:46.1]} 26...
Qe7 {[%clk 0:02:24.4]} 27. Be3 {[%clk 0:00:43.2]} 27... Rb8 {[%clk 0:02:03.6]}
28. Kg2 {[%clk 0:00:37.6]} 28... Nxc2 {[%clk 0:02:01.1]} 29. Nd5 {[%clk
0:00:29.7]} 29... Nxe3+ {[%clk 0:02:00.6]} 30. Qxe3 {[%clk 0:00:28.9]} 30...
Nxg4 {[%clk 0:01:36.7]} 31. Nxe7+ {[%clk 0:00:28.4]} 31... Rxe7 {[%clk
0:01:37.6]} 32. Qg3 {[%clk 0:00:17.7]} 32... Nxf2 {[%clk 0:01:37.9]} 33. Qxd6
{[%clk 0:00:13]} 33... Rxb2 {[%clk 0:01:19.8]} 34. Qxe7 {[%clk 0:00:04.2]} 34...
Nxd1+ {[%clk 0:01:19.4]} 35. Kf3 {[%clk 0:00:05.1]} 35... Rb3+ {[%clk
0:01:04.8]} 36. Kg2 {[%clk 0:00:02.9]} 36... Ne3+ {[%clk 0:01:04.4]} 37. Kg1
{[%clk 0:00:02.5]} 37... Rb5 {[%clk 0:00:48.9]} 38. Qd8+ {[%clk 0:00:02]} 38...
Bf8 {[%clk 0:00:48.9]} 39. Kf2 {[%clk 0:00:02.6]} 39... Nc4 {[%clk 0:00:48.4]}
40. Kg3 {[%clk 0:00:01.8]} 40... Nd6 {[%clk 0:00:47.8]} 41. Kf3 {[%clk
0:00:01.1]} 41... Nb7 {[%clk 0:00:45.4]} 0-1